fUSD/lending_fUSD_20240903
["ID","MTS","AMOUNT","RATE_DAILY","PERIOD"]
[337056207,1725390948848,-1512.86,0.00013899,2]
[337056208,1725390948875,-1512.86,0.00013899,2]
[337056209,1725390948899,-328.54599542,0.00013899,2]
[337056210,1725391036012,250.0,0.00012966,2]
[337056211,1725391047511,250.0,0.00012966,2]
[337056212,1725391064472,250.0,0.00012976,2]
[337056213,1725391080199,153.65,0.00012976,2]
[337056214,1725391127325,727.97,0.00011045,2]
[337056215,1725391138516,328.0,0.00012958,2]
[337056216,1725391156072,-153.65,0.0001304,2]
[337056217,1725391156096,-727.97,0.00013309,2]
[337056218,1725391156120,-300.0,0.00013799,2]
[337056219,1725391156146,-1409.01747138,0.00013799,2]
[337056220,1725391156169,-15175.2018,0.000138,2]
[337056221,1725391156192,-312.49364749,0.000138,2]
[337056222,1725391156220,-1210.11708113,0.000138,2]
[337056223,1725391197624,226.87,0.00012971,2]
[337056224,1725391268606,192.74,0.00012954,2]
[337056225,1725391305028,795.0,0.00013003,2]
[337056226,1725391326173,795.0,0.00013003,2]
[337056227,1725391347315,795.0,0.00013003,2]
[337056228,1725391347716,336.95,0.00010959,2]
[337056229,1725391356618,550.0,0.00011,2]
[337056230,1725391357759,600.0,0.00013,2]
[337056231,1725391535909,300.0,9.5e-05,2]
[337056232,1725391550864,3794.0580319,0.00010988,2]
[337056233,1725391671295,655.17,0.00011011,2]
[337056234,1725391677957,3635.90638334,0.0001,2]
[337056235,1725391688214,737.6,0.00012911,2]
[337056236,1725391700737,250.0,0.00012906,2]
[337056245,1725391832258,-795.0,0.00013088,2]
[337056246,1725391832270,-655.17,0.00013275,2]
[337056247,1725391832282,-1000.0,0.000137,2]
[337056248,1725391832295,-795.0,0.00013776,2]
[337056249,1725391832308,-300.0,0.00013798,2]
[337056251,1725391832321,-1268.11572426,0.00013799,2]
[337056254,1725391832332,-153.66948665,0.00013799,2]
[337056255,1725391832344,-159.64355935,0.00013799,2]
[337056256,1725391832355,-150.0,0.00013799,2]
[337056257,1725391832365,-273.40122974,0.00013799,2]
[337056258,1725391832389,-39.09241771,0.00013799,2]
[337056259,1725391832400,-425.90758229,0.000138,2]
[337056260,1725391832420,-27.22073658,0.000138,2]
[337056261,1725391832431,-2614.15175989,0.000138,2]
[337056262,1725391832446,-6064.83558298,0.000138,2]
[337056263,1725391832459,-372.34586458,0.000138,2]
[337056264,1725391832473,-582.52,0.000138,2]
[337056265,1725391832500,-17528.07066764,0.000138,2]
[337056266,1725391832514,-570.09,0.000138,2]
[337056269,1725391833417,-0.53368288,0.000138,2]
[337056272,1725391838579,-345.29924203,0.000138,2]
[337056273,1725391838590,-458.19767784,0.00013816,2]
[337056274,1725391838600,-458.19767784,0.00013818,2]
[337056275,1725391838610,-458.19767784,0.00013819,2]
[337056276,1725391838620,-500.0,0.00013873,2]
[337056277,1725391838631,-151.89,0.00013889,2]
[337056278,1725391838641,-1373.1,0.00013898,2]
[337056279,1725391838651,-4380.38,0.00013898,2]
[337056280,1725391838661,-1814.09,0.00013898,2]
[337056281,1725391838672,-2413.65,0.00013898,2]
[337056282,1725391838682,-774.45,0.00013898,2]
[337056283,1725391838694,-2707.79,0.00013898,2]
[337056284,1725391838705,-745.42,0.00013898,2]
[337056285,1725391838716,-924.63772445,0.00013898,2]
[337056304,1725391840389,-1261.42227555,0.00013898,2]
[337056305,1725391840401,-1437.89446776,0.00013898,2]
[337056306,1725391840505,-337.65553224,0.00013898,2]
[337056307,1725391840516,-653.91,0.00013898,2]
[337056308,1725391840526,-466.54825476,0.00013898,2]
[337056309,1725391840727,-187.36174524,0.00013898,2]
[337056310,1725391840739,-653.91,0.00013898,2]
[337056311,1725391840751,-653.91,0.00013898,2]
[337056312,1725391840761,-206.6579823,0.00013899,2]
[337056395,1725391871340,500.0,9.972e-05,2]
[337056396,1725391871791,500.0,9.972e-05,2]
[337056397,1725391872910,500.0,0.00012712,2]
[337056398,1725391873369,500.0,0.00012712,2]
[337056399,1725391897945,1500.0,9.972e-05,2]
[337056400,1725391898410,1200.0,9.972e-05,2]
[337056401,1725391899536,1500.0,0.00011342,2]
[337056402,1725391900048,1200.0,0.00011342,2]
[337056403,1725391901118,1500.0,0.00012712,2]
[337056404,1725391901623,1200.0,0.00012712,2]
[337056405,1725391971763,200.0,0.0001287,2]
[337056406,1725392026370,150.0,0.00012865,2]
[337056407,1725392161199,195.66,0.00012865,2]
[337056408,1725392165703,409.92,0.0001286,2]
[337056409,1725392179599,3981.44,0.0001286,2]
[337056410,1725392189139,250.0,0.00012861,2]
[337056411,1725392194280,698.65,0.00010943,2]
[337056412,1725392296847,226.86,0.0001287,2]
[337056413,1725392357749,228.59,0.0001287,2]
[337056414,1725392371305,250.0,0.0001287,2]
[337056416,1725392468486,200.0,0.00012872,2]
[337056417,1725392664652,167.54,0.00012847,2]
[337056418,1725392666382,200.0,0.00012808,2]
[337056419,1725392698254,250.0,0.00012843,2]
[337056420,1725392703533,150.0,0.00012501,2]
[337056421,1725392703956,150.0,0.00012656,2]
[337056422,1725392704290,150.0,0.0001281,2]
[337056423,1725392704614,150.0,0.00012964,2]
[337056424,1725392708886,150.0,0.00012501,2]
[337056425,1725392716707,150.0,0.00012501,2]
[337056426,1725392717011,150.0,0.00012849,2]
[337056427,1725392727942,150.0,0.00012501,2]
[337056428,1725392730271,672.06,0.00012814,2]
[337056429,1725392774641,663.71,0.00010892,2]
[337056430,1725392828403,-150.0,0.00013119,2]
[337056431,1725392828432,-663.71,0.00013156,2]
[337056432,1725392828457,-150.0,0.00013196,2]
[337056433,1725392828485,-150.0,0.00013196,2]
[337056434,1725392828509,-1223.0,0.00013206,2]
[337056435,1725392828534,-1736.39127381,0.00013206,2]
[337056436,1725392828560,-150.0,0.00013273,2]
[337056437,1725392891216,250.0,0.00012832,2]
[337056441,1725392946945,159.9,0.00010959,2]
[337056450,1725393031438,-150.0,0.00013427,2]
[337056451,1725393031453,-150.0,0.00013543,2]
[337056452,1725393031462,-150.0,0.00013582,2]
[337056453,1725393031472,-375.40068476,0.00013651,2]
[337056454,1725393031483,-602.12764875,0.00013651,2]
[337056455,1725393031493,-660.16831056,0.00013676,2]
[337056456,1725393031504,-839.83168944,0.00013676,2]
[337056457,1725393031514,-1500.0,0.0001369,2]
[337056458,1725393031523,-593.57390102,0.00013694,2]
[337056459,1725393031535,-784.65653678,0.00013694,2]
[337056460,1725393031554,-121.7695622,0.00013694,2]
[337056461,1725393031564,-150.0,0.00013699,2]
[337056462,1725393031573,-3173.77597751,0.000137,2]
[337056463,1725393031582,-150.0,0.00013736,2]
[337056464,1725393031591,-300.0,0.00013759,2]
[337056466,1725393031600,-755.45464,0.0001376,2]
[337056467,1725393031609,-803.07904715,0.00013762,2]
[337056470,1725393031625,-582.16202813,0.00013762,2]
[337056518,1725393037510,-114.75892472,0.00013762,2]
[337056519,1725393037519,-2423.94639879,0.0001379,2]
[337056520,1725393037531,-576.05360121,0.0001379,2]
[337056521,1725393037541,-238.94639879,0.00013795,2]
[337056522,1725393037552,-574.98736815,0.00013795,2]
[337056523,1725393037617,-521.53780639,0.00013795,2]
[337056524,1725393037626,-313.86047795,0.00013797,2]
[337056525,1725393037636,-150.0,0.00013798,2]
[337056526,1725393037645,-166.80786483,0.00013798,2]
[337056527,1725393037656,-224.93266947,0.00013798,2]
[337056528,1725393037665,-470.17891836,0.00013798,2]
[337056529,1725393037675,-7500.0,0.00013798,2]
[337056530,1725393037684,-25095.5817,0.00013799,2]
[337056531,1725393037694,-2269.55201317,0.000138,2]
[337056532,1725393037703,-470.17891835,0.00013803,2]
[337056533,1725393037712,-470.17891835,0.00013807,2]
[337056534,1725393037721,-257.58802737,0.00013808,2]
[337056535,1725393037730,-470.17891835,0.00013812,2]
[337056536,1725393037739,-470.17891835,0.00013816,2]
[337056537,1725393037748,-1500.0,0.00013819,2]
[337056538,1725393037758,-9666.11739369,0.00013823,2]
[337056539,1725393037767,-1500.0,0.00013831,2]
[337056540,1725393037776,-1500.0,0.00013833,2]
[337056542,1725393037785,-1000.0,0.00013851,2]
[337056544,1725393037794,-1000.0,0.00013851,2]
[337056546,1725393037803,-1000.0,0.00013851,2]
[337056548,1725393037812,-1000.0,0.00013851,2]
[337056549,1725393037821,-1000.0,0.00013851,2]
[337056551,1725393037830,-1000.0,0.00013851,2]
[337056553,1725393037840,-1000.0,0.00013851,2]
[337056555,1725393037850,-1000.0,0.00013851,2]
[337056557,1725393037859,-1000.0,0.00013851,2]
[337056559,1725393037868,-1000.0,0.00013851,2]
[337056561,1725393037877,-297.15282535,0.00013851,2]
[337056563,1725393037889,-702.84717465,0.00013851,2]
[337056565,1725393037898,-1000.0,0.00013851,2]
[337056567,1725393037910,-1000.0,0.00013851,2]
[337056569,1725393037919,-1000.0,0.00013851,2]
[337056571,1725393037928,-1000.0,0.00013851,2]
[337056573,1725393037937,-1000.0,0.00013851,2]
[337056575,1725393037947,-1000.0,0.00013851,2]
[337056577,1725393037955,-1000.0,0.00013851,2]
[337056579,1725393037964,-1000.0,0.00013851,2]
[337056581,1725393037973,-1000.0,0.00013851,2]
[337056583,1725393037982,-1000.0,0.00013851,2]
[337056584,1725393037992,-1000.0,0.00013851,2]
[337056586,1725393038002,-1000.0,0.00013851,2]
[337056588,1725393038011,-1000.0,0.00013851,2]
[337056590,1725393038020,-1000.0,0.00013851,2]
[337056592,1725393038029,-1000.0,0.00013851,2]
[337056594,1725393038038,-1000.0,0.00013851,2]
[337056596,1725393038047,-1000.0,0.00013851,2]
[337056598,1725393038056,-1000.0,0.00013851,2]
[337056600,1725393038065,-1000.0,0.00013851,2]
[337056602,1725393038073,-917.1218,0.00013851,2]
[337056603,1725393038082,-1500.0,0.00013853,2]
[337056604,1725393038091,-1500.0,0.00013854,2]
[337056605,1725393038102,-3000.0,0.0001386,2]
[337056606,1725393038110,-1500.0,0.00013864,2]
[337056607,1725393038119,-500.0,0.00013873,2]
[337056608,1725393038128,-268.97097785,0.00013887,2]
[337056609,1725393038137,-151.53,0.00013887,2]
[337056610,1725393038147,-268.97097785,0.00013888,2]
[337056611,1725393038158,-268.97097785,0.00013888,2]
[337056612,1725393038167,-232.75296518,0.0001389,2]
[337056613,1725393038176,-227.97428581,0.0001389,2]
[337056614,1725393038185,-261.94129289,0.0001389,2]
[337056615,1725393038195,-235.6359332,0.00013894,2]
[337056616,1725393038204,-11437.1125001,0.00013895,2]
[337056618,1725393038213,-7107.7734918,0.00013895,2]
[337056620,1725393038223,-25554.0285,0.00013895,2]
[337056622,1725393038232,-20753.4248212,0.00013895,2]
[337056624,1725393038241,-3196.4508333,0.00013895,2]
[337056626,1725393038250,-20214.95428744,0.00013895,2]
[337056628,1725393038262,-599.2800009,0.00013895,2]
[337056629,1725393038273,-8083.76323544,0.00013895,2]
[337056630,1725393038284,-6496.11580952,0.00013895,2]
[337056631,1725393038293,-7134.35781244,0.00013895,2]
[337056632,1725393038304,-1279.7631426,0.00013895,2]
[337056633,1725393039388,-7046.76754496,0.00013895,2]
[337056634,1725393039398,-471.2718664,0.00013895,2]
[337056635,1725393039410,-500.0,0.00013896,2]
[337056636,1725393039420,-500.0,0.00013896,2]
[337056637,1725393039430,-500.0,0.00013896,2]
[337056638,1725393039440,-1372.5,0.00013896,2]
[337056639,1725393039451,-2575.57,0.00013896,2]
[337056640,1725393039463,-72169.44,0.00013896,2]
[337056641,1725393039474,-4139.33,0.00013896,2]
[337056642,1725393039483,-3797.74,0.00013896,2]
[337056643,1725393039493,-500.0,0.00013896,2]
[337056644,1725393039503,-709.61,0.00013896,2]
[337056645,1725393039513,-767.76,0.00013896,2]
[337056646,1725393039523,-578.67,0.00013896,2]
[337056647,1725393039534,-1790.86,0.00013896,2]
[337056648,1725393039544,-13259.59,0.00013896,2]
[337056649,1725393039554,-151.0,0.00013896,2]
[337056650,1725393039564,-151.0,0.00013896,2]
[337056651,1725393039573,-38736.42,0.00013896,2]
[337056652,1725393039583,-500.0,0.00013896,2]
[337056653,1725393039593,-2816.46,0.00013896,2]
[337056654,1725393039602,-151.0,0.00013896,2]
[337056655,1725393039612,-151.0,0.00013896,2]
[337056656,1725393039622,-151.0,0.00013896,2]
[337056657,1725393039632,-771.41,0.00013896,2]
[337056658,1725393039641,-474.27803516,0.00013896,2]
[337056659,1725393039651,-22398.98,0.00013896,2]
[337056660,1725393039663,-1478.34,0.00013896,2]
[337056661,1725393039673,-3344.08,0.00013896,2]
[337056662,1725393039682,-4244.89,0.00013896,2]
[337056663,1725393039692,-500.0,0.00013896,2]
[337056664,1725393039702,-500.0,0.00013896,2]
[337056665,1725393039713,-151.0,0.00013896,2]
[337056666,1725393039723,-151.0,0.00013896,2]
[337056667,1725393039732,-151.0,0.00013896,2]
[337056668,1725393039742,-4094.52,0.00013896,2]
[337056669,1725393039751,-151.0,0.00013896,2]
[337056670,1725393039761,-500.0,0.00013896,2]
[337056671,1725393039770,-500.0,0.00013896,2]
[337056672,1725393039781,-235.6359332,0.00013896,2]
[337056673,1725393039790,-394.4063988,0.00013897,2]
[337056674,1725393039799,-500.0,0.00013897,2]
[337056675,1725393039809,-500.0,0.00013897,2]
[337056676,1725393039818,-500.0,0.00013897,2]
[337056677,1725393039827,-500.0,0.00013897,2]
[337056678,1725393039837,-500.0,0.00013897,2]
[337056679,1725393039846,-500.0,0.00013897,2]
[337056680,1725393039856,-500.0,0.00013897,2]
[337056681,1725393039866,-500.0,0.00013897,2]
[337056682,1725393039875,-500.0,0.00013897,2]
[337056683,1725393039885,-500.0,0.00013897,2]
[337056684,1725393039895,-500.0,0.00013897,2]
[337056685,1725393039904,-500.0,0.00013897,2]
[337056686,1725393039914,-500.0,0.00013897,2]
[337056687,1725393039923,-500.0,0.00013897,2]
[337056688,1725393039933,-500.0,0.00013897,2]
[337056689,1725393039942,-500.0,0.00013897,2]
[337056690,1725393039951,-500.0,0.00013897,2]
[337056691,1725393039961,-500.0,0.00013897,2]
[337056692,1725393039970,-537.67,0.00013897,2]
[337056693,1725393039981,-537.67,0.00013897,2]
[337056694,1725393039990,-500.0,0.00013897,2]
[337056695,1725393040000,-500.0,0.00013897,2]
[337056696,1725393040009,-751.72,0.00013897,2]
[337056697,1725393040018,-751.72,0.00013897,2]
[337056698,1725393040028,-500.0,0.00013897,2]
[337056699,1725393040037,-460.2910715,0.00013897,2]
[337056700,1725393040047,-500.0,0.00013897,2]
[337056701,1725393040057,-500.0,0.00013897,2]
[337056702,1725393040066,-500.0,0.00013897,2]
[337056703,1725393040075,-500.0,0.00013897,2]
[337056704,1725393040085,-500.0,0.00013897,2]
[337056705,1725393040094,-500.0,0.00013897,2]
[337056706,1725393040103,-500.0,0.00013897,2]
[337056707,1725393040113,-195.30931536,0.00013897,2]
[337056708,1725393040122,-500.0,0.00013897,2]
[337056709,1725393040131,-500.0,0.00013897,2]
[337056710,1725393040141,-229.91934084,0.00013897,2]
[337056711,1725393040150,-500.0,0.00013897,2]
[337056712,1725393040161,-500.0,0.00013897,2]
[337056713,1725393040171,-516.66,0.00013897,2]
[337056714,1725393040180,-516.66,0.00013897,2]
[337056715,1725393040190,-1059.95,0.00013897,2]
[337056716,1725393040200,-1059.95,0.00013897,2]
[337056717,1725393040209,-500.0,0.00013897,2]
[337056718,1725393040218,-500.0,0.00013897,2]
[337056719,1725393040228,-500.0,0.00013897,2]
[337056720,1725393040237,-500.0,0.00013897,2]
[337056721,1725393040246,-500.0,0.00013897,2]
[337056722,1725393040256,-500.0,0.00013897,2]
[337056723,1725393040265,-500.0,0.00013897,2]
[337056724,1725393040274,-596.89,0.00013897,2]
[337056725,1725393040283,-596.89,0.00013897,2]
[337056726,1725393040293,-1084.63,0.00013897,2]
[337056727,1725393040302,-1084.63,0.00013897,2]
[337056728,1725393040311,-500.0,0.00013897,2]
[337056729,1725393040322,-500.0,0.00013897,2]
[337056730,1725393040331,-500.0,0.00013897,2]
[337056731,1725393040340,-500.0,0.00013897,2]
[337056732,1725393040349,-500.0,0.00013897,2]
[337056733,1725393040358,-500.0,0.00013897,2]
[337056734,1725393040367,-548.51900311,0.00013897,2]
[337056735,1725393040377,-500.0,0.00013897,2]
[337056736,1725393040387,-500.0,0.00013897,2]
[337056737,1725393040396,-500.0,0.00013897,2]
[337056738,1725393040407,-500.0,0.00013897,2]
[337056739,1725393040416,-4367.01,0.00013897,2]
[337056740,1725393040425,-4367.01,0.00013897,2]
[337056741,1725393040434,-4367.01,0.00013897,2]
[337056742,1725393040443,-4367.01,0.00013897,2]
[337056743,1725393040453,-3094.41,0.00013897,2]
[337056744,1725393040465,-3094.41,0.00013897,2]
[337056745,1725393040474,-538.91,0.00013897,2]
[337056746,1725393040483,-538.91,0.00013897,2]
[337056747,1725393040492,-712.77,0.00013897,2]
[337056748,1725393040502,-712.77,0.00013897,2]
[337056749,1725393040511,-712.77,0.00013897,2]
[337056750,1725393040520,-712.77,0.00013897,2]
[337056751,1725393040530,-712.77,0.00013897,2]
[337056752,1725393040539,-712.77,0.00013897,2]
[337056753,1725393040548,-1773.63,0.00013897,2]
[337056754,1725393040558,-1773.63,0.00013897,2]
[337056755,1725393040567,-1773.63,0.00013897,2]
[337056756,1725393040576,-1773.63,0.00013897,2]
[337056757,1725393040584,-500.0,0.00013897,2]
[337056758,1725393040594,-500.0,0.00013897,2]
[337056759,1725393040603,-4197.86,0.00013897,2]
[337056760,1725393040613,-4197.86,0.00013897,2]
[337056761,1725393040621,-4197.86,0.00013897,2]
[337056762,1725393040630,-3663.44009942,0.00013897,2]
[337056763,1725393040644,-534.41990058,0.00013897,2]
[337056764,1725393040653,-285.40385916,0.00013897,2]
[337056765,1725393040670,-3912.45614084,0.00013897,2]
[337056766,1725393040679,-4197.86,0.00013897,2]
[337056767,1725393040688,-1738.5,0.00013897,2]
[337056768,1725393040697,-1738.5,0.00013897,2]
[337056769,1725393040707,-1738.5,0.00013897,2]
[337056770,1725393040716,-1738.5,0.00013897,2]
[337056771,1725393040725,-1738.5,0.00013897,2]
[337056772,1725393040734,-1738.5,0.00013897,2]
[337056773,1725393040743,-2313.08,0.00013897,2]
[337056774,1725393040753,-2313.08,0.00013897,2]
[337056775,1725393040761,-2313.08,0.00013897,2]
[337056776,1725393040770,-1886.56385916,0.00013897,2]
[337056777,1725393041041,-426.51614084,0.00013897,2]
[337056778,1725393041051,-637.93983506,0.00013897,2]
[337056790,1725393042418,-1448.63415379,0.00013897,2]
[337056791,1725393042430,-226.50601115,0.00013897,2]
[337056792,1725393042440,-1429.65498752,0.00013897,2]
[337056793,1725393042453,-883.42501248,0.00013897,2]
[337056794,1725393042464,-156.57488752,0.00013897,2]
[337056795,1725393042476,-498.7999998,0.00013897,2]
[337056796,1725393042487,-1722.81511268,0.00013897,2]
[337056797,1725393042496,-999.06466866,0.00013897,2]
[337056798,1725393042508,-1379.12533134,0.00013897,2]
[337056799,1725393042517,-3270.87466866,0.00013897,2]
[337056800,1725393042533,-4665.45533134,0.00013897,2]
[337056801,1725393042541,-55.28997291,0.00013897,2]
[337056802,1725393042631,-1951.24999987,0.00013896,2]
[337056803,1725393042642,-877.60613837,0.00013896,2]
[337056804,1725393042653,-693.91386176,0.00013896,2]
[337056805,1725393042669,-7881.04002709,0.00013897,2]
[337056806,1725393042678,-7936.33,0.00013897,2]
[337056807,1725393042687,-71.15644792,0.00013897,2]
[337056808,1725393042699,-2350.89459176,0.00013897,2]
[337056811,1725393043434,-5514.27896032,0.00013897,2]
[337056812,1725393043444,-2630.07,0.00013897,2]
[337056813,1725393043455,-919.4,0.00013897,2]
[337056814,1725393043465,-2630.07,0.00013897,2]
[337056815,1725393043475,-919.4,0.00013897,2]
[337056816,1725393043484,-2630.07,0.00013897,2]
[337056817,1725393043494,-2630.07,0.00013897,2]
[337056818,1725393043505,-296.37436,0.00013897,2]
[337056819,1725393043514,-1229.83,0.00013897,2]
[337056820,1725393043523,-1229.83,0.00013897,2]
[337056821,1725393043533,-742.18,0.00013897,2]
[337056822,1725393043542,-742.18,0.00013897,2]
[337056823,1725393043551,-742.18,0.00013897,2]
[337056824,1725393043564,-742.18,0.00013897,2]
[337056825,1725393043573,-742.18,0.00013897,2]
[337056826,1725393043582,-742.18,0.00013897,2]
[337056827,1725393043590,-3556.6,0.00013897,2]
[337056828,1725393043599,-3556.6,0.00013897,2]
[337056829,1725393043609,-3556.6,0.00013897,2]
[337056830,1725393043620,-3556.6,0.00013897,2]
[337056831,1725393043630,-1766.19,0.00013897,2]
[337056832,1725393043640,-1766.19,0.00013897,2]
[337056833,1725393043649,-500.0,0.00013897,2]
[337056834,1725393043658,-500.0,0.00013897,2]
[337056835,1725393043667,-500.0,0.00013897,2]
[337056836,1725393043676,-500.0,0.00013897,2]
[337056837,1725393043685,-2594.96,0.00013897,2]
[337056838,1725393043694,-500.0,0.00013897,2]
[337056839,1725393043703,-500.0,0.00013897,2]
[337056840,1725393043711,-2594.96,0.00013897,2]
[337056841,1725393043720,-500.0,0.00013897,2]
[337056842,1725393043729,-2594.96,0.00013897,2]
[337056843,1725393043738,-2594.96,0.00013897,2]
[337056844,1725393043747,-2594.96,0.00013897,2]
[337056845,1725393043757,-2594.96,0.00013897,2]
[337056846,1725393043766,-1273.35,0.00013897,2]
[337056847,1725393043778,-1273.35,0.00013897,2]
[337056848,1725393043787,-1379.33,0.00013897,2]
[337056849,1725393043796,-1379.33,0.00013897,2]
[337056850,1725393043806,-1379.33,0.00013897,2]
[337056851,1725393043816,-1379.33,0.00013897,2]
[337056852,1725393043826,-1163.42,0.00013897,2]
[337056853,1725393043836,-1163.42,0.00013897,2]
[337056854,1725393043847,-2167.7,0.00013897,2]
[337056855,1725393043856,-2167.7,0.00013897,2]
[337056856,1725393043865,-1084.83,0.00013897,2]
[337056857,1725393043875,-500.0,0.00013897,2]
[337056858,1725393043886,-1084.83,0.00013897,2]
[337056859,1725393043897,-500.0,0.00013897,2]
[337056860,1725393043910,-500.0,0.00013897,2]
[337056861,1725393043918,-500.0,0.00013897,2]
[337056862,1725393043928,-151.0,0.00013897,2]
[337056863,1725393043937,-151.0,0.00013897,2]
[337056864,1725393043946,-1087.08,0.00013897,2]
[337056865,1725393043957,-161.326116,0.00013897,2]
[337056866,1725393043966,-1087.08,0.00013897,2]
[337056867,1725393043977,-1087.08,0.00013897,2]
[337056868,1725393043987,-1087.08,0.00013897,2]
[337056869,1725393043998,-1087.08,0.00013897,2]
[337056870,1725393044007,-1087.08,0.00013897,2]
[337056871,1725393044016,-2002.02,0.00013897,2]
[337056872,1725393044025,-2002.02,0.00013897,2]
[337056873,1725393044034,-2002.02,0.00013897,2]
[337056874,1725393044043,-2002.02,0.00013897,2]
[337056875,1725393044053,-500.0,0.00013897,2]
[337056876,1725393044062,-500.0,0.00013897,2]
[337056877,1725393044071,-4604.27,0.00013897,2]
[337056878,1725393044083,-4604.27,0.00013897,2]
[337056879,1725393044093,-4604.27,0.00013897,2]
[337056880,1725393044102,-4604.27,0.00013897,2]
[337056881,1725393044112,-1581.49,0.00013897,2]
[337056882,1725393044123,-1581.49,0.00013897,2]
[337056883,1725393044134,-1646.14,0.00013897,2]
[337056884,1725393044143,-1646.14,0.00013897,2]
[337056885,1725393044153,-965.7736839,0.00013897,2]
[337056886,1725393044167,-666.41,0.00013897,2]
[337056887,1725393044178,-13.9563161,0.00013897,2]
[337056888,1725393044189,-557.6,0.00013897,2]
[337056889,1725393044198,-935.7336839,0.00013897,2]
[337056890,1725393044209,-710.4063161,0.00013897,2]
[337056891,1725393044218,-557.6,0.00013897,2]
[337056892,1725393044227,-557.6,0.00013897,2]
[337056893,1725393044236,-557.6,0.00013897,2]
[337056894,1725393044245,-557.6,0.00013897,2]
[337056895,1725393044254,-557.6,0.00013897,2]
[337056896,1725393044263,-1701.57,0.00013897,2]
[337056897,1725393044272,-1681.11,0.00013897,2]
[337056898,1725393044281,-1701.57,0.00013897,2]
[337056899,1725393044290,-1701.57,0.00013897,2]
[337056900,1725393044298,-1681.11,0.00013897,2]
[337056901,1725393044308,-1701.57,0.00013897,2]
[337056902,1725393044317,-1681.11,0.00013897,2]
[337056903,1725393044326,-1701.57,0.00013897,2]
[337056904,1725393044335,-1681.11,0.00013897,2]
[337056905,1725393044345,-1701.57,0.00013897,2]
[337056906,1725393044354,-2094.97,0.00013897,2]
[337056907,1725393044363,-1.6163427,0.00013897,2]
[337056908,1725393044374,-2093.3536573,0.00013897,2]
[337056909,1725393044383,-2094.97,0.00013897,2]
[337056910,1725393044392,-942.63206998,0.00013897,2]
[337056913,1725393045620,-1152.33793002,0.00013897,2]
[337056914,1725393045629,-572.54553305,0.00013897,2]
[337056924,1725393059544,150.0,0.00012944,2]
[337056925,1725393077818,1000.0,0.00011068,2]
[337056926,1725393079387,1000.0,0.00012438,2]
[337056927,1725393079720,1500.0,9.972e-05,2]
[337056928,1725393081724,1500.0,0.00011342,2]
[337056929,1725393083294,1500.0,0.00012712,2]
[337056930,1725393106070,500.0,9.972e-05,2]
[337056931,1725393107037,500.0,9.972e-05,2]
[337056932,1725393107823,500.0,0.00012712,2]
[337056933,1725393108624,500.0,0.00012712,2]
[337056934,1725393167748,550.0,0.00011,2]
[337056935,1725393168358,187.7,0.00012906,2]
[337056936,1725393168886,600.0,0.00013,2]
[337056937,1725393224169,462.35,0.00012904,2]
[337056938,1725393237873,179.15,0.00012904,2]
[337056939,1725393237902,250.0,0.00012904,2]
[337056940,1725393350995,700.42,0.00010979,2]
[337056941,1725393351214,700.42,0.00013243,2]
[337056942,1725393353178,3271.42,0.00012897,2]
[337056943,1725393374440,153.65,0.00012904,2]